fUST/lending_fUST_20240811
["ID","MTS","AMOUNT","RATE_DAILY","PERIOD"]
[334642886,1723378251758,-151.0,0.00021095,2]
[334642887,1723378251767,-151.0,0.00021095,2]
[334642888,1723378251777,-226.3733502,0.00021095,3]
[334642889,1723378251786,-500.0,0.00021095,3]
[334642890,1723378251795,-500.0,0.00021095,3]
[334642891,1723378251807,-500.0,0.00021095,3]
[334642892,1723378251818,-500.0,0.00021095,3]
[334642893,1723378251826,-500.0,0.00021095,3]
[334642894,1723378251834,-500.0,0.00021095,3]
[334642895,1723378251844,-871.95,0.00021095,3]
[334642896,1723378251853,-273.247663,0.00021095,2]
[334642897,1723378251863,-273.247663,0.00021095,2]
[334642898,1723378251872,-500.0,0.00021095,3]
[334642899,1723378251881,-500.0,0.00021095,3]
[334642900,1723378251891,-500.0,0.00021095,3]
[334642901,1723378251901,-1968.98,0.00021095,3]
[334642902,1723378251910,-273.247663,0.00021095,2]
[334642903,1723378251919,-274.046381,0.00021095,2]
[334642904,1723378251929,-273.247663,0.00021095,2]
[334642905,1723378251938,-274.046381,0.00021095,2]
[334642906,1723378251947,-690.03,0.00021095,3]
[334642907,1723378251956,-1054.79,0.00021095,3]
[334642908,1723378251966,-274.046381,0.00021095,2]
[334642909,1723378251975,-274.046381,0.00021095,2]
[334642910,1723378251984,-500.0,0.00021095,3]
[334642911,1723378251993,-500.0,0.00021095,3]
[334642912,1723378252002,-500.0,0.00021095,3]
[334642913,1723378252011,-500.0,0.00021095,3]
[334642914,1723378252020,-783.95,0.00021095,3]
[334642915,1723378252029,-500.0,0.00021095,3]
[334642916,1723378252038,-1461.53,0.00021095,3]
[334642917,1723378252047,-500.0,0.00021095,3]
[334642918,1723378252062,-729.94,0.00021095,3]
[334642919,1723378252071,-500.0,0.00021095,3]
[334642920,1723378252080,-500.0,0.00021095,3]
[334642921,1723378252089,-500.0,0.00021095,3]
[334642922,1723378252098,-526.52,0.00021095,3]
[334642923,1723378252107,-500.0,0.00021095,3]
[334642924,1723378252116,-672.7,0.00021095,3]
[334642925,1723378252125,-628.16,0.00021095,3]
[334642926,1723378252133,-385.8453,0.00021095,2]
[334642927,1723378252142,-385.8453,0.00021095,2]
[334642928,1723378252152,-561.47,0.00021095,3]
[334642929,1723378252160,-699.33,0.00021095,3]
[334642930,1723378252171,-385.8453,0.00021095,2]
[334642931,1723378252180,-385.8453,0.00021095,2]
[334642932,1723378252189,-500.0,0.00021095,3]
[334642933,1723378252198,-500.0,0.00021095,3]
[334642934,1723378252207,-500.0,0.00021095,2]
[334642935,1723378252217,-500.0,0.00021095,3]
[334642936,1723378252226,-669.58,0.00021095,3]
[334642937,1723378252236,-500.0,0.00021095,3]
[334642938,1723378252245,-1227.07,0.00021095,3]
[334642939,1723378252254,-500.0,0.00021095,3]
[334642940,1723378252263,-500.0,0.00021095,3]
[334642941,1723378252273,-587.79,0.00021095,3]
[334642942,1723378252282,-500.0,0.00021095,3]
[334642943,1723378252291,-500.0,0.00021095,3]
[334642944,1723378252300,-665.17,0.00021095,3]
[334642945,1723378252313,-647.43,0.00021095,3]
[334642946,1723378252322,-500.0,0.00021095,3]
[334642947,1723378252331,-500.0,0.00021095,3]
[334642948,1723378252341,-653.61,0.00021095,3]
[334642949,1723378252350,-558.95,0.00021095,3]
[334642950,1723378252359,-500.0,0.00021095,3]
[334642951,1723378252368,-298.225132,0.00021095,2]
[334642952,1723378252377,-298.225132,0.00021095,2]
[334642953,1723378252386,-500.0,0.00021095,3]
[334642954,1723378252395,-298.225132,0.00021095,2]
[334642955,1723378252404,-298.225132,0.00021095,2]
[334642956,1723378252413,-500.0,0.00021095,3]
[334642957,1723378252424,-734.69,0.00021095,3]
[334642958,1723378252433,-500.0,0.00021095,3]
[334642959,1723378252443,-1124.79,0.00021095,3]
[334642960,1723378252454,-850.914584,0.00021095,2]
[334642961,1723378252468,-500.0,0.00021095,3]
[334642962,1723378252478,-850.914584,0.00021095,2]
[334642963,1723378252487,-850.914584,0.00021095,2]
[334642964,1723378252496,-850.914584,0.00021095,2]
[334642965,1723378252506,-503.14273655,0.00021095,3]
[334642966,1723378252515,-1248.59,0.00021095,3]
[334642967,1723378252524,-500.0,0.00021095,3]
[334642968,1723378252537,-967.88,0.00021095,3]
[334642969,1723378252546,-630.46,0.00021095,3]
[334642970,1723378252557,-877.67,0.00021095,3]
[334642971,1723378252566,-500.0,0.00021095,3]
[334642972,1723378252576,-338.835098,0.00021095,2]
[334642973,1723378252585,-338.835098,0.00021095,2]
[334642974,1723378252596,-338.835098,0.00021095,2]
[334642975,1723378252605,-338.835098,0.00021095,2]
[334642976,1723378252614,-477.20019805,0.00021095,3]
[334642977,1723378252623,-500.0,0.00021095,3]
[334642978,1723378252632,-500.0,0.00021095,3]
[334642979,1723378252641,-500.0,0.00021095,3]
[334642980,1723378252651,-448.722236,0.00021095,2]
[334642981,1723378252659,-448.722236,0.00021095,2]
[334642982,1723378252669,-514.15,0.00021095,3]
[334642983,1723378252678,-448.722236,0.00021095,2]
[334642984,1723378252688,-448.722236,0.00021095,2]
[334642985,1723378252697,-512.62371025,0.00021095,3]
[334642986,1723378252707,-1261.66,0.00021095,3]
[334642987,1723378252715,-1002.27,0.00021095,3]
[334642988,1723378252724,-500.0,0.00021095,3]
[334642989,1723378252734,-500.0,0.00021095,3]
[334642990,1723378252743,-1318.07,0.00021095,3]
[334642991,1723378252752,-508.3809433,0.00021095,3]
[334642992,1723378252761,-500.0,0.00021095,3]
[334642993,1723378252770,-500.0,0.00021095,3]
[334642994,1723378252779,-500.0,0.00021095,3]
[334642995,1723378252789,-500.0,0.00021095,3]
[334642996,1723378252799,-500.0,0.00021095,3]
[334642997,1723378252813,-500.0,0.00021095,3]
[334642998,1723378252826,-500.0,0.00021095,3]
[334642999,1723378252835,-500.0,0.00021095,3]
[334643000,1723378252845,-500.0,0.00021095,3]
[334643001,1723378252855,-500.0,0.00021095,3]
[334643002,1723378252864,-500.0,0.00021095,3]
[334643003,1723378252994,-500.0,0.00021095,3]
[334643004,1723378253004,-1469.3,0.00021095,3]
[334643005,1723378253013,-500.0,0.00021095,3]
[334643006,1723378253022,-500.0,0.00021095,3]
[334643007,1723378253031,-500.0,0.00021095,3]
[334643008,1723378253040,-1657.76,0.00021095,3]
[334643009,1723378253050,-178.164987,0.00021095,2]
[334643010,1723378253062,-178.164987,0.00021095,2]
[334643011,1723378253071,-500.0,0.00021095,3]
[334643012,1723378253081,-500.0,0.00021095,3]
[334643013,1723378253091,-500.0,0.00021095,3]
[334643014,1723378253100,-500.0,0.00021095,3]
[334643015,1723378253109,-2220.34,0.00021095,3]
[334643016,1723378253119,-500.0,0.00021095,3]
[334643017,1723378253129,-718.72,0.00021095,3]
[334643018,1723378253138,-500.0,0.00021095,3]
[334643019,1723378253149,-1019.864266,0.00021095,2]
[334643020,1723378253159,-500.0,0.00021095,3]
[334643021,1723378253170,-650.6,0.00021095,3]
[334643022,1723378253180,-500.0,0.00021095,3]
[334643023,1723378253189,-500.0,0.00021095,3]
[334643024,1723378253198,-236.475489,0.00021095,2]
[334643025,1723378253208,-1330.54,0.00021095,3]
[334643026,1723378253217,-500.0,0.00021095,3]
[334643027,1723378253226,-236.475489,0.00021095,2]
[334643028,1723378253235,-500.0,0.00021095,3]
[334643029,1723378253244,-713.52,0.00021095,3]
[334643030,1723378253254,-500.0,0.00021095,3]
[334643031,1723378253264,-298.869484,0.00021095,2]
[334643032,1723378253274,-500.0,0.00021095,3]
[334643033,1723378253283,-278.84094368,0.00021095,3]
[334643034,1723378253293,-500.0,0.00021095,3]
[334643035,1723378253302,-1807.35,0.00021095,3]
[334643036,1723378253321,-298.869484,0.00021095,2]
[334643037,1723378253331,-500.0,0.00021095,3]
[334643038,1723378253340,-1230.81,0.00021095,3]
[334643039,1723378253349,-500.0,0.00021095,3]
[334643040,1723378253359,-2207.41,0.00021095,3]
[334643041,1723378253367,-524.11,0.00021095,3]
[334643042,1723378253377,-1677.04,0.00021095,3]
[334643043,1723378253386,-504.48158229,0.00021095,3]
[334643044,1723378253395,-1204.05,0.00021095,3]
[334643045,1723378253404,-500.0,0.00021095,3]
[334643046,1723378253413,-2170.98,0.00021095,3]
[334643047,1723378253422,-2195.35,0.00021095,3]
[334643048,1723378253431,-1253.92,0.00021095,3]
[334643049,1723378253441,-500.0,0.00021095,3]
[334643050,1723378253451,-500.0,0.00021095,3]
[334643051,1723378253464,-596.03,0.00021095,3]
[334643052,1723378253473,-500.0,0.00021095,3]
[334643053,1723378253482,-2480.16,0.00021095,3]
[334643054,1723378253492,-500.0,0.00021095,3]
[334643055,1723378253502,-503.03257381,0.00021095,3]
[334643056,1723378253511,-500.0,0.00021095,3]
[334643057,1723378253521,-500.0,0.00021095,3]
[334643058,1723378253530,-11302.7,0.00021095,3]
[334643059,1723378253542,-922.87,0.00021095,3]
[334643060,1723378253552,-1442.31,0.00021095,3]
[334643061,1723378253564,-2289.43,0.00021095,3]
[334643062,1723378253573,-500.0,0.00021095,3]
[334643063,1723378253583,-2108.16,0.00021095,3]
[334643064,1723378253592,-500.0,0.00021095,3]
[334643065,1723378253602,-531.39450414,0.00021095,3]
[334643066,1723378253611,-3496.99,0.00021095,3]
[334643067,1723378253620,-500.0,0.00021095,3]
[334643068,1723378253630,-500.0,0.00021095,3]
[334643069,1723378253639,-603.37,0.00021095,3]
[334643070,1723378253647,-2122.37,0.00021095,3]
[334643071,1723378253656,-500.0,0.00021095,3]
[334643072,1723378253666,-742.26,0.00021095,3]
[334643073,1723378253678,-555.193424,0.00021095,2]
[334643074,1723378253690,-620.44,0.00021095,3]
[334643075,1723378253699,-555.193424,0.00021095,2]
[334643076,1723378253709,-2117.66,0.00021095,3]
[334643077,1723378253719,-500.0,0.00021095,3]
[334643078,1723378253729,-500.0,0.00021095,3]
[334643079,1723378253739,-500.0,0.00021095,3]
[334643080,1723378253749,-500.0,0.00021095,3]
[334643081,1723378253760,-500.0,0.00021095,3]
[334643082,1723378253771,-550.05,0.00021095,3]
[334643083,1723378253780,-680.97,0.00021095,3]
[334643084,1723378253790,-500.0,0.00021095,3]
[334643085,1723378253801,-500.0,0.00021095,3]
[334643086,1723378253814,-820.2,0.00021095,3]
[334643087,1723378253825,-572.95,0.00021095,3]
[334643088,1723378253834,-500.0,0.00021095,3]
[334643089,1723378253845,-870.51,0.00021095,3]
[334643090,1723378253855,-974.77,0.00021095,3]
[334643091,1723378253865,-500.0,0.00021095,3]
[334643092,1723378253876,-1220.03,0.00021095,3]
[334643093,1723378253886,-1102.42,0.00021095,3]
[334643094,1723378253896,-500.0,0.00021095,3]
[334643095,1723378253905,-2873.95,0.00021095,3]
[334643096,1723378253915,-1481.7,0.00021095,3]
[334643097,1723378253925,-500.0,0.00021095,3]
[334643098,1723378253936,-1531.63,0.00021095,3]
[334643099,1723378253945,-930.37,0.00021095,3]
[334643100,1723378253954,-500.0,0.00021095,3]
[334643101,1723378253964,-500.0,0.00021095,3]
[334643102,1723378253974,-500.0,0.00021095,3]
[334643103,1723378253984,-500.0,0.00021095,3]
[334643104,1723378253996,-3906.89,0.00021095,3]
[334643105,1723378254007,-500.0,0.00021095,3]
[334643106,1723378254018,-1267.32,0.00021095,3]
[334643107,1723378254027,-11697.12,0.00021095,3]
[334643108,1723378254037,-500.0,0.00021095,3]
[334643109,1723378254046,-1122.56,0.00021095,3]
[334643110,1723378254055,-7855.68,0.00021095,3]
[334643111,1723378254068,-500.0,0.00021095,3]
[334643112,1723378254078,-500.0,0.00021095,3]
[334643113,1723378254088,-663.887588,0.00021095,2]
[334643114,1723378254100,-663.887588,0.00021095,2]
[334643115,1723378254117,-500.0,0.00021095,3]
[334643116,1723378254135,-1324.91,0.00021095,3]
[334643117,1723378254161,-1778.96,0.00021095,3]
[334643118,1723378254175,-663.887588,0.00021095,2]
[334643119,1723378254191,-663.887588,0.00021095,2]
[334643120,1723378254207,-5405.26,0.00021095,3]
[334643121,1723378254221,-1864.71,0.00021095,3]
[334643122,1723378254240,-874.56,0.00021095,3]
[334643123,1723378254255,-819.67,0.00021095,3]
[334643124,1723378254269,-500.0,0.00021095,3]
[334643125,1723378254286,-1400.35,0.00021095,3]
[334643126,1723378254301,-500.0,0.00021095,3]
[334643127,1723378254316,-500.0,0.00021095,3]
[334643128,1723378254328,-1732.79,0.00021095,3]
[334643129,1723378254342,-500.0,0.00021095,3]
[334643130,1723378254356,-844.31,0.00021095,3]
[334643131,1723378254370,-500.0,0.00021095,3]
[334643132,1723378254387,-1224.91,0.00021095,3]
[334643133,1723378254402,-500.0,0.00021095,3]
[334643134,1723378254415,-724.29,0.00021095,3]
[334643135,1723378254426,-917.33,0.00021095,3]
[334643136,1723378254439,-268.169195,0.00021095,2]
[334643137,1723378254454,-268.169195,0.00021095,2]
[334643138,1723378254472,-500.0,0.00021095,3]
[334643139,1723378254485,-549.3,0.00021095,3]
[334643140,1723378254498,-500.0,0.00021095,3]
[334643141,1723378254513,-500.0,0.00021095,3]
[334643142,1723378254524,-567.64,0.00021095,3]
[334643143,1723378254536,-2393.07,0.00021095,3]
[334643144,1723378254550,-268.169195,0.00021095,2]
[334643145,1723378254566,-268.169195,0.00021095,2]
[334643146,1723378254578,-500.0,0.00021095,3]
[334643147,1723378254591,-500.0,0.00021095,3]
[334643148,1723378254603,-504.9600289,0.00021095,3]
[334643149,1723378254615,-500.0,0.00021095,3]
[334643150,1723378254627,-5526.82,0.00021095,3]
[334643151,1723378254638,-500.0,0.00021095,3]
[334643152,1723378254650,-1020.6,0.00021095,3]
[334643153,1723378254662,-500.0,0.00021095,3]
[334643154,1723378254674,-1253.26,0.00021095,3]
[334643155,1723378254685,-1067.26,0.00021095,3]
[334643156,1723378254696,-1777.04,0.00021095,3]
[334643157,1723378254708,-500.0,0.00021095,3]
[334643158,1723378254721,-503.79819152,0.00021095,3]
[334643159,1723378254734,-500.0,0.00021095,3]
[334643160,1723378254746,-500.0,0.00021095,3]
[334643161,1723378254758,-500.0,0.00021095,3]
[334643162,1723378254770,-500.0,0.00021095,3]
[334643163,1723378254782,-266.76278,0.00021095,2]
[334643164,1723378254795,-5526.95,0.00021095,3]
[334643165,1723378254808,-3000.0,0.000211,2]
[334643166,1723378254819,-151.0,0.0002111,2]
[334643167,1723378254831,-3000.0,0.0002111,2]
[334643168,1723378254843,-298.869484,0.0002111,2]
[334643169,1723378254854,-298.869484,0.0002111,2]
[334643170,1723378254868,-555.193424,0.0002111,2]
[334643171,1723378254881,-555.193424,0.0002111,2]
[334643172,1723378254894,-3000.0,0.0002112,2]
[334643173,1723378254906,-1000.0,0.00021125,2]
[334643174,1723378254919,-3000.0,0.0002113,2]
[334643175,1723378254930,-1000.0,0.0002113,2]
[334643176,1723378254942,-3000.0,0.0002114,2]
[334643177,1723378254954,-300.0,0.00021144,2]
[334643178,1723378254967,-1000.0,0.00021144,2]
[334643179,1723378254980,-3000.0,0.0002115,2]
[334643180,1723378254993,-151.0,0.0002116,2]
[334643181,1723378255005,-151.0,0.0002116,2]
[334643182,1723378255017,-3000.0,0.0002116,2]
[334643183,1723378255029,-178.164987,0.0002116,2]
[334643184,1723378255041,-178.164987,0.0002116,2]
[334643185,1723378255053,-1019.864266,0.0002116,2]
[334643186,1723378255066,-236.475489,0.0002116,2]
[334643187,1723378255080,-236.475489,0.0002116,2]
[334643188,1723378255091,-1000.0,0.00021165,2]
[334643189,1723378255103,-3000.0,0.0002117,2]
[334643190,1723378255116,-179.69485,0.00021171,2]
[334643191,1723378255129,-165.002825,0.00021171,2]
[334643192,1723378255141,-179.69485,0.00021171,2]
[334643193,1723378255153,-3000.0,0.0002118,2]
[334643194,1723378255167,-2367.20627581,0.00021185,2]
[334643195,1723378255181,-3000.0,0.0002119,2]
[334643196,1723378255194,-503.97800149,0.000212,2]
[334643197,1723378255207,-3000.0,0.000212,2]
[334643198,1723378255219,-587.199076,0.000212,9]
[334643199,1723378255233,-1000.0,0.000212,2]
[334643200,1723378255246,-3000.0,0.0002121,2]
[334643201,1723378255258,-823.0,0.00021217,2]
[334643202,1723378255271,-3000.0,0.0002122,2]
[334643203,1723378255283,-3000.0,0.0002123,2]
[334643204,1723378255296,-298.225132,0.0002123,2]
[334643205,1723378255309,-298.225132,0.0002123,2]
[334643206,1723378255321,-850.914584,0.0002123,2]
[334643207,1723378255334,-850.914584,0.0002123,2]
[334643208,1723378255346,-338.835098,0.0002123,2]
[334643209,1723378255358,-338.835098,0.0002123,2]
[334643210,1723378255371,-251.906681,0.0002124,2]
[334643211,1723378255384,-251.906681,0.0002124,2]
[334643212,1723378255396,-3000.0,0.0002124,2]
[334643213,1723378255411,-151.0,0.00021245,2]
[334643214,1723378255424,-151.0,0.00021245,2]
[334643215,1723378255436,-3000.0,0.0002125,2]
[334643216,1723378255450,-68.45929418,0.0002126,2]
[334643217,1723378255880,-1667.27,0.0002126,2]
[334643218,1723378255923,-1264.27070582,0.0002126,2]
[334643219,1723378255932,-3000.0,0.0002127,2]
[334643220,1723378255942,-2026.18069844,0.0002128,2]
[334643221,1723378256249,-154.76012181,0.0001784,2]
[334643222,1723378256259,-266.76278,0.00018325,2]
[334643223,1723378256269,-266.76278,0.00019,2]
[334643224,1723378256278,-532.50037914,0.00019155,2]
[334643225,1723378256287,-266.76278,0.00020447,2]
[334643226,1723378256297,-266.76278,0.00021095,2]
[334643227,1723378256306,-500.0,0.00021095,2]
[334643228,1723378256320,-973.81930156,0.0002128,2]
[334643229,1723378256330,-3000.0,0.0002129,2]
[334643230,1723378256339,-3000.0,0.000213,2]
[334643231,1723378256350,-3000.0,0.0002131,2]
[334643232,1723378256360,-3000.0,0.0002132,2]
[334643233,1723378256370,-4112.128336,0.0002133,2]
[334643234,1723378256381,-151.0,0.00021369,2]
[334643235,1723378256393,-151.0,0.00021369,2]
[334643236,1723378256402,-160.038809,0.00021369,2]
[334643237,1723378256413,-151.0,0.00021369,2]
[334643238,1723378256426,-151.0,0.00021369,2]
[334643239,1723378256436,-500.0,0.00021369,3]
[334643240,1723378256447,-500.0,0.00021369,3]
[334643241,1723378256457,-500.0,0.00021369,3]
[334643242,1723378256469,-500.0,0.00021369,3]
[334643243,1723378256478,-500.0,0.00021369,3]
[334643244,1723378256487,-500.0,0.00021369,3]
[334643245,1723378256500,-500.0,0.00021369,3]
[334643246,1723378256510,-500.0,0.00021369,3]
[334643247,1723378256519,-500.0,0.00021369,3]
[334643248,1723378256528,-500.0,0.00021369,3]
[334643249,1723378256540,-500.0,0.00021369,3]
[334643250,1723378256550,-500.0,0.00021369,3]
[334643251,1723378256560,-500.0,0.00021369,3]
[334643252,1723378256569,-500.0,0.00021369,3]
[334643253,1723378256579,-500.0,0.00021369,3]
[334643254,1723378256589,-500.0,0.00021369,3]
[334643255,1723378256600,-500.0,0.00021369,3]
[334643256,1723378256609,-515.10562149,0.00021369,3]
[334643257,1723378256619,-500.0,0.00021369,3]
[334643258,1723378256630,-500.0,0.00021369,3]
[334643259,1723378256640,-512.71199984,0.00021369,3]
[334643260,1723378256650,-500.0,0.00021369,3]
[334643261,1723378256660,-791.8,0.00021369,3]
[334643262,1723378256671,-500.0,0.00021369,3]
[334643263,1723378256682,-500.0,0.00021369,3]
[334643264,1723378256692,-675.29,0.00021369,3]
[334643265,1723378256702,-500.0,0.00021369,3]
[334643266,1723378256715,-251.906681,0.00021369,2]
[334643267,1723378256727,-251.906681,0.00021369,2]
[334643268,1723378256737,-500.0,0.00021369,3]
[334643269,1723378256747,-500.0,0.00021369,3]
[334643270,1723378256757,-528.73,0.00021369,3]
[334643271,1723378256769,-500.0,0.00021369,3]
[334643272,1723378256780,-500.0,0.00021369,3]
[334643273,1723378256792,-500.0,0.00021369,3]
[334643274,1723378256803,-585.21,0.00021369,3]
[334643275,1723378256815,-500.0,0.00021369,3]
[334643276,1723378256825,-500.0,0.00021369,3]
[334643277,1723378256835,-500.0,0.00021369,3]
[334643278,1723378256845,-500.0,0.00021369,3]
[334643279,1723378256854,-500.0,0.00021369,3]
[334643280,1723378256864,-500.0,0.00021369,3]
[334643281,1723378256874,-217.34205725,0.00021369,3]
[334643282,1723378256884,-500.0,0.00021369,3]
[334643283,1723378256893,-500.0,0.00021369,3]
[334643284,1723378256902,-569.12,0.00021369,3]
[334643285,1723378256911,-512.62,0.00021369,3]
[334643286,1723378256921,-500.0,0.00021369,3]
[334643287,1723378256930,-500.0,0.00021369,3]
[334643288,1723378256939,-500.0,0.00021369,3]
[334643289,1723378256949,-500.0,0.00021369,3]
[334643290,1723378256958,-500.0,0.00021369,3]
[334643291,1723378256968,-757.32,0.00021369,3]
[334643292,1723378256977,-752.63,0.00021369,3]
[334643293,1723378256987,-500.0,0.00021369,3]
[334643294,1723378256996,-618.69610768,0.00021369,3]
[334643295,1723378257006,-500.0,0.00021369,3]
[334643296,1723378257015,-500.0,0.00021369,3]
[334643297,1723378257025,-500.0,0.00021369,3]
[334643298,1723378257034,-500.0,0.00021369,3]
[334643299,1723378257045,-957.84,0.00021369,3]
[334643300,1723378257055,-500.0,0.00021369,3]
[334643301,1723378257067,-500.0,0.00021369,3]
[334643302,1723378257076,-904.48,0.00021369,3]
[334643303,1723378257085,-482.33552864,0.00021369,3]
[334643304,1723378257094,-903.29,0.00021369,3]
[334643305,1723378257103,-500.0,0.00021369,3]
[334643306,1723378257113,-500.0,0.00021369,3]
[334643307,1723378257122,-500.0,0.00021369,3]
[334643308,1723378257131,-500.0,0.00021369,3]
[334643309,1723378257141,-500.0,0.00021369,3]
[334643310,1723378257150,-157.153137,0.00021369,2]
[334643311,1723378257159,-821.33,0.00021369,3]
[334643312,1723378257169,-500.0,0.00021369,3]
[334643313,1723378257179,-545.2089341,0.00021369,3]
[334643314,1723378257189,-500.0,0.00021369,3]
[334643315,1723378257199,-500.0,0.00021369,3]
[334643316,1723378257208,-500.0,0.00021369,3]
[334643317,1723378257218,-500.0,0.00021369,3]
[334643318,1723378257228,-500.0,0.00021369,3]
[334643319,1723378257238,-500.0,0.00021369,3]
[334643320,1723378257249,-554.9899808,0.00021369,3]
[334643321,1723378257258,-500.0,0.00021369,3]
[334643322,1723378257268,-151.0,0.00021369,2]
[334643323,1723378257278,-151.0,0.00021369,2]
[334643324,1723378257288,-500.0,0.00021369,3]
[334643325,1723378257297,-191.485801,0.00021369,2]
[334643326,1723378257306,-567.72860209,0.00021369,3]
[334643327,1723378257319,-500.0,0.00021369,3]
[334643328,1723378257328,-506.58495556,0.00021369,3]
[334643329,1723378257337,-500.0,0.00021369,3]
[334643330,1723378257347,-500.0,0.00021369,3]
[334643331,1723378257355,-500.0,0.00021369,3]
[334643332,1723378257365,-871.95,0.00021369,3]
[334643333,1723378257375,-273.247663,0.00021369,2]
[334643334,1723378257384,-273.247663,0.00021369,2]
[334643335,1723378257394,-500.0,0.00021369,3]
[334643336,1723378257403,-1968.98,0.00021369,3]
[334643337,1723378257413,-618.79473176,0.00021369,3]
[334643338,1723378257423,-273.247663,0.00021369,2]
[334643339,1723378257433,-274.046381,0.00021369,2]
[334643340,1723378257443,-690.03,0.00021369,3]
[334643341,1723378257455,-273.247663,0.00021369,2]
[334643342,1723378257469,-274.046381,0.00021369,2]
[334643343,1723378257480,-1054.79,0.00021369,3]
[334643344,1723378257490,-274.046381,0.00021369,2]
[334643345,1723378257502,-500.0,0.00021369,3]
[334643346,1723378257513,-274.046381,0.00021369,2]
[334643347,1723378257523,-500.0,0.00021369,3]
[334643348,1723378257533,-500.0,0.00021369,3]
[334643349,1723378257545,-783.95,0.00021369,3]
[334643350,1723378257556,-500.0,0.00021369,3]
[334643351,1723378257568,-1461.53,0.00021369,3]
[334643352,1723378257577,-520.43466718,0.00021369,3]
[334643353,1723378257586,-729.94,0.00021369,3]
[334643354,1723378257595,-500.0,0.00021369,3]
[334643355,1723378257604,-500.0,0.00021369,3]
[334643356,1723378257613,-500.0,0.00021369,3]
[334643357,1723378257623,-526.52,0.00021369,3]
[334643358,1723378257633,-500.0,0.00021369,3]
[334643359,1723378257642,-672.7,0.00021369,3]
[334643360,1723378257651,-628.16,0.00021369,3]
[334643361,1723378257659,-385.8453,0.00021369,2]
[334643362,1723378257668,-385.8453,0.00021369,2]
[334643363,1723378257677,-561.47,0.00021369,3]
[334643364,1723378257685,-699.33,0.00021369,3]
[334643365,1723378257695,-385.8453,0.00021369,2]
[334643366,1723378257704,-500.0,0.00021369,3]
[334643367,1723378257713,-385.8453,0.00021369,2]
[334643368,1723378257722,-500.0,0.00021369,3]
[334643369,1723378257731,-500.0,0.00021369,2]
[334643370,1723378257740,-500.0,0.00021369,3]
[334643371,1723378257749,-669.58,0.00021369,3]
[334643372,1723378257758,-500.0,0.00021369,3]
[334643373,1723378257767,-1227.07,0.00021369,3]
[334643374,1723378257777,-500.0,0.00021369,3]
[334643375,1723378257786,-500.0,0.00021369,3]
[334643376,1723378257795,-587.79,0.00021369,3]
[334643377,1723378257804,-500.0,0.00021369,3]
[334643378,1723378257814,-621.77354407,0.00021369,3]
[334643379,1723378257823,-665.17,0.00021369,3]
[334643380,1723378257832,-647.43,0.00021369,3]
[334643381,1723378257841,-500.0,0.00021369,3]
[334643382,1723378257850,-500.0,0.00021369,3]
[334643383,1723378257860,-653.61,0.00021369,3]
[334643384,1723378257869,-558.95,0.00021369,3]
[334643385,1723378257878,-500.0,0.00021369,3]